Cogmind - Beta 9.2 @@@ ROGUE MODE // 2019.11.13 @ 14:58:54 Player: Demise Result: Core destroyed Performance ------------- Evolutions (0) 0 Regions Visited (2) 400 Robots Destroyed (11) 55 Value Destroyed (102) 102 Prototype IDs (0) 0 Alien Tech Used (0) 0 Bonus (0) 0 TOTAL SCORE: 557 Bonus ------- None Cogmind --------- Core Integrity 0/250 Matter 294/300 Energy 100/100 System Corruption 3% Temperature Cool (0) Movement Core (50) Location -10/Mines Parts ------- > --- POWER (1) -------- (None) > --- PROPULSION (2) --- (None) > --- UTILITY (2) ------ Seismic Analyzer Propulsion Shielding > --- WEAPON (2) ------- (None) > --- INVENTORY (4) ---- Light Ion Engine Medium Storage Unit Rocket Launcher Mining Laser Peak State ------------ > --- POWER ------------ Light Ion Engine > --- PROPULSION ------- Compact Wheel Compact Wheel > --- UTILITY ---------- Improved Terrain Scanner Seismic Analyzer > --- WEAPON ----------- Medium Laser Assault Rifle > --- INVENTORY -------- Light Ion Engine Small Storage Unit EM Pulse Gun Mining Laser [Rating: 8] Favorites ----------- Power Light Ion Engine Engine Light Ion Engine Propulsion Wheel Leg Aluminum Leg Wheel Wheel Utility Seismic Analyzer Device Improved Terrain Scanner Storage Small Storage Unit Processor Seismic Analyzer Protection Propulsion Shielding Weapon Assault Rifle Energy Gun Medium Laser Ballistic Gun Assault Rifle Launcher Grenade Launcher Special Weapon Mining Laser Build | -11 -10 -10 ------- Run | Scr Mat Min Slots Evolved . | . . . Power . | . . . Propulsion . | . . . Utility . | . . . Weapon . | . . . Parts Attached 16 | 7 7 2 Power 1 | . . 1 Engine 1 | . . 1 Core . | . . . Reactor . | . . . Propulsion 5 | 4 1 . Treads . | . . . Leg . | . . . Wheel 5 | 4 1 . Hover . | . . . Flight . | . . . Utility 4 | 3 1 . Device 2 | 2 . . Storage . | . . . Processor 1 | 1 . . Hackware . | . . . Protection 1 | . 1 . Artifact . | . . . Weapon 6 | . 5 1 Energy Gun 1 | . . 1 Energy Cannon . | . . . Ballistic Gun 1 | . 1 . Ballistic Cannon . | . . . Launcher 1 | . 1 . Special Weapon 3 | . 3 . Impact Weapon . | . . . Slashing Weapon . | . . . Piercing Weapon . | . . . Special Melee Weapon . | . . . Unidentified Prototypes . | . . . Parts Lost 7 | . 2 5 Power 1 | . . 1 Propulsion 2 | . . 2 Utility 1 | . 1 . Weapon 3 | . 1 2 Highest Loss Streak 5 | . 2 5 Average Slot Usage (%) 95 | . 98 90 Engine 13 | . 14 13 Wheel 26 | . 28 23 Device 6 | . 10 . Processor 14 | . 14 14 Protection 6 | . 2 14 Energy Gun 7 | . 10 1 Ballistic Gun 12 | . 12 12 Special Weapon 5 | . 3 10 Naked Turns . | . . . Heaviest Build 11 | 11 9 7 Greatest Support 32 | 32 20 20 Greatest Overweight (x) 1 | . . 1 Average Overweight (x) . | . . . Largest Inventory Capacity 6 | 6 4 4 Average Capacity 4 | 5 4 4 Most Carried 6 | 6 4 4 Average Carried 3 | 3 4 3 Final Capacity 4 | 4 4 4 Final Carried 4 | 4 4 4 Class Distribution -------------------- 73% | Scavenger-Mutant 26% | Mutant Dominant Class ---------------- Scavenger-Mutant | -10/Materials Mutant | -10/Mines Resources | -11 -10 -10 ----------- Run | Scr Mat Min Matter Collected 393 | 330 43 20 Remotely . | . . . Salvage Created 316 | 204 92 20 Parts 22 | 17 5 . Haulers Intercepted 1 | . 1 . Recyclers Shooed . | . . . Parts Field Recycled . | . . . Retrieved Matter . | . . . Parts Self-Destructed . | . . . Prevented . | . . . Kills | -11 -10 -10 ------- Run | Scr Mat Min Combat Hostiles Destroyed 2 | . 1 1 Guns 2 | . 1 1 Classes Destroyed 6 | 3 2 1 Worker 2 | 2 . . Tunneler 5 | 5 . . Hauler 1 | . 1 . Recycler 1 | 1 . . Grunt 1 | . 1 . Assembled 1 | . . 1 Best Kill Streak 4 | 4 1 1 Combat Bots Only 1 | . 1 1 Max Kills in Single Turn 1 | 1 1 1 Gunslinging . | . . . Exploded . | . . . Melee . | . . . Uniques/NPCs Destroyed . | . . . Combat | -11 -10 -10 -------- Run | Scr Mat Min Damage Taken 732 | . 319 413 Core 260 | . 56 204 Absorbed by Shields . | . . . Core Remaining (%) 100 | 100 . . Volleys Fired 52 | 20 17 15 Largest 2 | 2 2 2 Hottest 100 | 70 100 100 Shots Fired 89 | 39 28 22 Gun 75 | 39 22 14 Cannon . | . . . Launcher . | . . . Special 14 | . 6 8 Kinetic 38 | 20 11 7 Thermal 44 | 19 17 8 Explosive . | . . . Electromagnetic 7 | . . 7 Robot Hit Streak 7 | 7 6 4 Robot Miss Streak 3 | 3 2 1 Penetration Max . | . . . Secondary Targets . | . . . Shots Hit Robots 46 | 22 15 9 Core Hits 23 | 9 5 9 Critical Hits . | . . . Critical Kills . | . . . Critical Parts Destroyed . | . . . Melee Attacks . | . . . Impact . | . . . Slashing . | . . . Piercing . | . . . Sneak Attacks . | . . . Combat Hostiles . | . . . Follow-up Attacks . | . . . Damage Inflicted 600 | 274 212 114 Guns 568 | 274 204 90 Cannons . | . . . Explosions . | . . . Melee . | . . . Ramming 32 | . 8 24 Kinetic 261 | 111 103 47 Thermal 264 | 163 101 . Explosive . | . . . Electromagnetic 43 | . . 43 Impact . | . . . Slashing . | . . . Piercing . | . . . Highest Corruption 3 | . 1 3 Average Corruption 1 | . 1 1 Corruption Purged . | . . . Effects 1 | . 1 . Message Errors 1 | . 1 . Overload Shots . | . . . Overflow Damage . | . . . Projectiles . | . . . Explosions . | . . . Melee . | . . . Knockbacks . | . . . Impact . | . . . Kinetic . | . . . Secondary . | . . . Self-Inflicted Damage 13 | . 3 10 Shots . | . . . Rammed 15 | . 2 13 Targets Rammed 15 | . 2 13 Kicked . | . . . Crushed . | . . . Highest Temperature 120 | 63 120 60 Average Temperature 29 | 23 38 25 Received Heat Transfer 171 | . 171 . Siege Activations . | . . . Robots Corrupted . | . . . Combat Hostiles . | . . . Parts Fried . | . . . Impact Corruptions . | . . . Robots Melted . | . . . Combat Hostiles . | . . . Parts Melted 2 | 2 . . Heat Transferred 777 | 481 296 . Parts Sabotaged . | . . . Parts Stolen . | . . . Parts Stripped . | . . . Power Chain Reactions . | . . . Missiles Intercepted . | . . . Alert | -11 -10 -10 ------- Run | Scr Mat Min Peak Influence 107 | 40 107 41 Average Influence 38 | 20 47 36 Maximum Alert Level . | . . . Low Security (%) 100 | 100 100 100 Level 1 . | . . . Level 2 . | . . . Level 3 . | . . . Level 4 . | . . . Level 5 . | . . . High Security . | . . . Max Security . | . . . Squads Dispatched 1 | . 1 . Investigation 1 | . 1 . Extermination . | . . . Reinforcement . | . . . Assault . | . . . Garrison . | . . . Intercept . | . . . Construction Impeded . | . . . Haulers Reinforced . | . . . Stealth | -11 -10 -10 --------- Run | Scr Mat Min Distress Signals . | . . . Communications Jammed . | . . . Distress Signals . | . . . Times Spotted 16 | . 14 2 Peak Tracking Total 8 | . 8 2 Tactical Retreats 1 | . 1 . Traps | -11 -10 -10 ------- Run | Scr Mat Min Traps Triggered 1 | . 1 . Indirectly . | . . . Trap Hack Attempts . | . . . Triggered . | . . . Disarmed . | . . . Reprogrammed . | . . . Reused . | . . . Traps Extracted . | . . . Installed . | . . . Triggered . | . . . Machines | -11 -10 -10 ---------- Run | Scr Mat Min Machines Disabled 2 | . 2 . Max in Single Turn 1 | . 1 . Machines Sabotaged . | . . . Garrisons Compromised . | . . . Overloaded Fab Kills . | . . . Fab Network Shutdowns . | . . . Hacking | -11 -10 -10 --------- Run | Scr Mat Min Machines Accessed 3 | . 3 . Terminals 3 | . 3 . Fabricators . | . . . Repair Stations . | . . . Recycling Units . | . . . Scanalyzers . | . . . Garrison Access . | . . . Total Hacks 9 | . 9 . Successful 4 | . 4 . Failed 5 | . 5 . Catastrophic . | . . . Database Lockouts . | . . . Manual 9 | . 9 . Terminals 9 | . 9 . Fabricators . | . . . Repair Stations . | . . . Recycling Units . | . . . Scanalyzers . | . . . Garrison Access . | . . . Terminal Hacks 1 | . 1 . Branch Access Points 1 | . 1 . Fabricator Hacks . | . . . Repair Station Hacks . | . . . Recycling Unit Hacks . | . . . Scanalyzer . | . . . Garrison Access Hacks . | . . . Unauthorized Hacks 10 | . 10 . Terminals 3 | . 3 . Botnet 3 | . 3 . Fabricators . | . . . Repair Stations . | . . . Recycling Units . | . . . Scanalyzers . | . . . Garrison Access . | . . . Data Cores Recovered . | . . . Used . | . . . Hacking Detections 2 | . 2 . Full Trace Events 1 | . 1 . Feedback Events . | . . . Feedback Blocked . | . . . Robot Schematics Acquired . | . . . Robots Built . | . . . Matter . | . . . Time . | . . . Total Robot Build Rating . | . . . Part Schematics Acquired . | . . . Parts Built . | . . . Matter . | . . . Time . | . . . Total Part Build Rating . | . . . Parts Repaired . | . . . Time . | . . . Parts Recycled . | . . . Recycled Matter . | . . . Retrieved Matter . | . . . Retrieved Components . | . . . Parts Scanalyzed . | . . . Part Schematics Acquired . | . . . Parts Damaged . | . . . Bothacking | -11 -10 -10 ------------ Run | Scr Mat Min Used RIF Installer . | . . . Robots Hacked . | . . . Non-combat . | . . . Combat . | . . . Robot Hacks Applied . | . . . Relay Couplers Released . | . . . Robots Rewired . | . . . Allies Hacked . | . . . Hacks Repelled . | . . . Allies | -11 -10 -10 -------- Run | Scr Mat Min Total Allies . | . . . Largest Group . | . . . Highest-Rated Group . | . . . Highest-Rated Ally . | . . . Total Orders . | . . . Ally Attacks . | . . . Total Damage . | . . . Kills . | . . . Allies Corrupted . | . . . Allies Melted . | . . . Intel | -11 -10 -10 ------- Run | Scr Mat Min Robot Analysis Total . | . . . Derelict Logs Recovered 1 | . . 1 Drone Launches . | . . . Drone Recoveries . | . . . Exploration | -11 -10 -10 ------------- Run | Scr Mat Min Turns Passed 560 | 130 276 154 Spaces Moved 320 | 51 171 98 Core 2 | . . 2 Treads . | . . . Legs 12 | 12 . . Wheels 306 | 39 171 96 Hover . | . . . Flight . | . . . Fastest Speed 80 | 80 80 80 Average Speed 83 | 99 80 80 Slowest Speed 120 | 120 80 100 Overloaded Moves . | . . . Propulsion Burnouts . | . . . Robots Hopped . | . . . Cave-ins Triggered . | . . . Exploration Rate (%) 20 | 4 36 22 Regions Visited 2 Branch Regions 1 Pre-discovered Areas . | . . . Known Exits Taken 1 | . 1 . Unknown Exits Taken 1 | 1 . . Scrap Searched 2 | . . 2 Spaces Dug 5 | . 5 . Terrain Destroyed 5 | . 5 . Melee . | . . . Projectile 5 | . 5 . AOE . | . . . Actions | -11 -10 -10 --------- Run | Scr Mat Min Total 498 | 94 270 134 Wait 79 | 4 70 5 Move 318 | 50 170 98 Hop . | . . . Pick Up 6 | 4 1 1 Fast Attach 5 | 3 2 . Attach . | . . . Detach . | . . . Swap 11 | 4 5 2 Drop 13 | 9 3 1 Fire 52 | 20 17 15 Melee . | . . . Ram 14 | . 2 12 Kick . | . . . Crush . | . . . Escape Stasis . | . . . Rewire . | . . . Trap . | . . . Miscellaneous . | . . . Route ------- -11/Scrapyard -10/Materials (discovered 2 exits: *Min x2) -10/Mines History --------- Turn | Location | Event 23 | -11/Scrapyard | Discovered new exit (range 3) 131 | -11/Scrapyard | Entered Materials 306 | -10/Materials | Build established: Scavenger-Mutant 350 | -10/Materials | Identified exit to Mines 407 | -10/Materials | Entered Mines 422 | -10/Mines | Received a Rocket Launcher from a helpful Derelict 471 | -10/Mines | Learned 2 Materials zone layouts 486 | -10/Mines | Excavation squad dispatched 486 | -10/Mines | A large section of the Mines collapsed 542 | -10/Mines | Core integrity fell below 50% 555 | -10/Mines | Core integrity fell below 20% 561 | -10/Mines | Core destroyed Last Messages --------------- 00486_ ALERT: Suspicious cave-in, suspected derelict activity in mines. Dispatching escorted excavation squad. 00533_ as-98042 misfires. 00534_ Destroyed Asb. Hover Unit. 00539_ Wheel destroyed. 00540_ as-98042 destroyed. 00546_ Wheel destroyed. 00546_ EM Pulse Gun destroyed. 00546_ Assault Rifle destroyed. 00546_ Slammed into as-84325. 00547_ Acquired 20 matter. 00550_ Slammed into as-84325. 00550_ Destabilizing: System corrupted (+2). 00551_ Slammed into as-84325. 00552_ Destabilizing: System interference. 00552_ Seismic Analyzer temporarily disabled. 00553_ Slammed into as-84325. 00559_ Lgt. Ion Engine destroyed. 00560_ Slammed into as-84325. 00561_ Destabilizing: Core damaged (-12). Map ----- +----------------------------------------------------+ | ????????????????????????????? | | ????????????????????????????? | | ????????????????????????????? | | ????????????????????????????? | | ????????????????????????????? | | ????????????????????????????? | | ????????????????????????????? | | ??????????????????????????### | | ??????????????????????????# | | ??????????????????????????# | | ??????????????????????????# | | ????????????????#?????????# | | ???????????????# ?????????# | | ??????????????? #????????# | | ???????????????# #????????# | | ???????????????# #????????# | | ???????????????# #????????# | | ??##???????????# #????????# | | ??# ?????????# #??####### | | ??# ????????# #??# | | ??# ### ######## #### #### | | ??### ### ##* #### | | ??## # !# | | ?### ##################### | | ?##a##???????????????????## | | ??##@#????????????????????# | | ???###????????????????????# | | ????????????????????????? | | ????????????????????????##### | | ????????????????????????????? | | ????????????????????????????? | | ????????????????????????????? | | ????????????????????????????? | | | | | | | | | | | | | | | | | | | | | | | | | | | | | | | | | | | +----------------------------------------------------+ Best States ------------- Heat Dissipation 25 Energy Generation 10 Energy Capacity 125 Matter Stores 300 Matter Capacity 300 Sight Range 16 Terrain Scan Range 16 Terrain Scan Density 60 Propulsion Shielding 33 Evasion (%) 44 Item Schematics ----------------- None Robot Schematics ------------------ None Fabricated ------------ Nothing Alien Tech Used ----------------- None Achievements -------------- None Challenges ------------ None Game ------ Seed HeatAssaultKit Manual? 0 Play Time 00:09:22 Cumulative 116.0 hours Start 2019.11.13 @ 14:51:29 End 2019.11.13 @ 14:58:54 Sessions 1 Manual Loads 0 Difficulty Rogue Special Mode None Game No. 155 Rogue 144 Adventurer 11 Explorer 0 Win Type - Total 0 Types 0/0/0/0/0/0/0 Lore% 43 Gallery% 54 Achievement% 37 Wizard Run 0 Options --------- ASCII 0 Keyboard 1 Movement Numpad Keybinds 0 Fullscreen 1 Font 12/Terminus Map View 83x54 Tactical HUD 1 Map Filters NONE Filters NONE Steam 1 RUN: 275c96ec-371e-4e4b-af29-fc444e7e114a